[Event "FIDE CB Open 2022"]
[Site "Ceske Budejovice"]
[Date "2022.07.07"]
[Round "7.46"]
[White "Almaini, Aishah Sarhan"]
[Black "Musil, Vitezslav"]
[Result "0-1"]
[ECO "E70"]
[WhiteElo "1615"]
[BlackElo "1834"]
[Annotator "NA RC COMBH"]
[PlyCount "104"]
[EventDate "2022.07.01"]
[EventType "swiss"]
[EventCountry "CZE"]
[SourceTitle "playchess.com"]
[Source "ChessBase"]
[SourceQuality "1"]
[TimeControl "40/5400+30:1800+30"]

1. d4 {[%emt 0:00:06]} Nf6 {[%emt 0:00:10]} 2. c4 {[%emt 0:00:09]} g6 {[%emt 0:00:03]} 3. Nc3 {[%emt 0:00:08]} Bg7 {[%emt 0:00:05]} 4. e4 {[%emt 0:00:10]} O-O {[%emt 0:00:09]} 5. Bd3 {[%emt 0:02:25]} d6 {[%emt 0:00:14]} 6. Nge2 {[%emt 0:00:19]} e5 {[%emt 0:01:30]} 7. d5 {[%emt 0:00:38]} Nbd7 {[%emt 0:03:09]} 8. O-O {[%emt 0:04:22]} Nc5 {[%emt 0:01:12]} 9. Bc2 {[%emt 0:00:14]} a5 {[%emt 0:00:15]} 10. f3 {[%emt 0:04:43]} c6 {[%emt 0:08:05]} 11. Be3 {[%emt 0:00:27]} Qc7 {[%emt 0:04:48]} 12. a3 {[%emt 0:01:17]} cxd5 {[%emt 0:04:22]} 13. cxd5 {[%emt 0:02:10]} Bd7 {[%emt 0:01:26]} 14. b4 {[%emt 0:05:35]} axb4 {[%emt 0:02:08]} 15. axb4 {[%emt 0:00:25]} Rxa1 {[%emt 0:00:23]} 16. Qxa1 {[%emt 0:00:19]} Na6 {[%emt 0:00:17]} 17. Qa3 {[%emt 0:10:28]} Rc8 {[%emt 0:14:26]} 18. Bd3 {[%emt 0:04:31]} Rb8 {[%emt 0:17:21]} 19. Rc1 {[%emt 0:04:01]} Bf8 {[%emt 0:03:12]} 20. Na4 {[%emt 0:15:30]} Qd8 {[%emt 0:03:07]} 21. Bb6 {[%emt 0:02:36]} Qe8 {[%emt 0:01:52]} 22. Nac3 {[%emt 0:06:02]} Ra8 {[%emt 0:07:03]} 23. Qb3 {[%emt 0:03:11]} Nb8 {[%emt 0:03:30]} 24. Qb2 {[%emt 0:07:49]} Bh6 {[%emt 0:02:22]} 25. Ra1 {[%emt 0:01:49]} Rxa1+ {[%emt 0:01:16]} 26. Qxa1 {[%emt 0:00:01]} Qc8 {[%emt 0:00:12]} 27. Qa5 {[%emt 0:04:23]} Ne8 {[%emt 0:01:52]} 28. Nb5 {[%emt 0:03:46]} Bxb5 {[%emt 0:03:33]} 29. Bxb5 {[%emt 0:03:23]} Nd7 {[%emt 0:02:45]} 30. Bxd7 {[%emt 0:01:46]} Qxd7 {[%emt 0:00:31]} 31. b5 {[%emt 0:01:36]} f5 {[%emt 0:01:40]} 32. h3 {[%emt 0:07:44]} fxe4 {[%emt 0:00:48]} 33. fxe4 {[%emt 0:00:05]} Nf6 {[%emt 0:01:32]} 34. Qb4 {[%emt 0:00:01]} Bf8 {[%emt 0:02:00]} 35. Qc4 {[%emt 0:00:32]} Qe8 {[%emt 0:02:32]} 36. Nc3 {[%emt 0:00:21]} Qa8 {[%emt 0:01:57]} 37. Qf1 {[%emt 0:03:14]} Be7 {[%emt 0:01:50]} 38. Be3 {[%emt 0:02:12]} Bd8 {[%emt 0:01:55]} 39. Qc1 {[%emt 0:00:57]} Qa5 {[%emt 0:00:33]} 40. Kh2 {[%emt 0:00:22]} Qb4 {[%emt 0:01:18]} 41. Qc2 {[%emt 0:30:39]} Qc4 {[%emt 0:32:33]} 42. Bg5 {[%emt 0:00:00]} Ng4+ {[%emt 0:00:00]} 43. hxg4 {[%emt 0:00:00]} Bxg5 {[%emt 0:00:00]} 44. b6 {[%emt 0:00:00]} Bf4+ {[%emt 0:00:00]} 45. g3 {[%emt 0:00:00]} Be3 {[%emt 0:00:00]} 46. Qa4 {[%emt 0:00:00]} Qxa4 {[%emt 0:00:00]} 47. Nxa4 {[%emt 0:00:00]} Kf7 {[%emt 0:00:00]} 48. Kg2 {[%emt 0:00:00]} Kf6 {[%emt 0:00:00]} 49. Kf3 {[%emt 0:00:00]} Bd4 {[%emt 0:00:00]} 50. Kg2 {[%emt 0:01:03]} Kg5 {[%emt 0:00:00]} 51. Kh3 {[%emt 0:02:32]} h6 {[%emt 0:00:00]} 52. Kg2 {[%emt 0:00:38]} Kxg4 {[%emt 0:00:00]} 0-1

[Event "FIDE CB Open 2022"]
[Site "Ceske Budejovice"]
[Date "2022.07.07"]
[Round "7.47"]
[White "Smola, David"]
[Black "Rucabado, Stefan"]
[Result "0-1"]
[ECO "B06"]
[WhiteElo "1609"]
[BlackElo "1809"]
[Annotator "NA RC COMBH"]
[PlyCount "50"]
[EventDate "2022.07.01"]
[EventType "swiss"]
[EventCountry "CZE"]
[SourceTitle "playchess.com"]
[Source "ChessBase"]
[SourceQuality "1"]
[TimeControl "40/5400+30:1800+30"]

1. e4 {[%emt 0:00:09]} g6 {[%emt 0:00:05]} 2. d4 {[%emt 0:01:25]} Bg7 {[%emt 0:00:17]} 3. Bc4 {[%emt 0:02:35]} a6 {[%emt 0:00:32]} 4. Ne2 {[%emt 0:03:30]} d6 {[%emt 0:01:44]} 5. O-O {[%emt 0:02:15]} Nd7 {[%emt 0:00:05]} 6. Be3 {[%emt 0:02:01]} b5 {[%emt 0:00:15]} 7. Bb3 {[%emt 0:02:40]} Ngf6 {[%emt 0:00:26]} 8. f3 {[%emt 0:01:43]} O-O {[%emt 0:01:00]} 9. Qd2 {[%emt 0:03:46]} Re8 {[%emt 0:02:11]} 10. c4 {[%emt 0:04:45]} c5 {[%emt 0:02:05]} 11. Rd1 {[%emt 0:07:25]} Qc7 {[%emt 0:02:37]} 12. Nbc3 {[%emt 0:04:47]} bxc4 {[%emt 0:02:07]} 13. Bxc4 {[%emt 0:12:14]} cxd4 {[%emt 0:00:12]} 14. Qxd4 {[%emt 0:00:24]} Ng4 {[%emt 0:01:41]} 15. Qd5 {[%emt 0:02:13]} e6 {[%emt 0:03:07]} 16. Qxa8 {[%emt 0:02:23]} Nxe3 {[%emt 0:03:40]} 17. Bd5 {[%emt 0:08:29]} Nxd1 {[%emt 0:01:54]} 18. Rxd1 {[%emt 0:06:24]} exd5 {[%emt 0:00:46]} 19. Qxd5 {[%emt 0:00:47]} Qb6+ {[%emt 0:00:49]} 20. Kf1 {[%emt 0:01:14]} Qxb2 {[%emt 0:00:41]} 21. Qc6 {[%emt 0:01:19]} Rf8 {[%emt 0:12:27]} 22. Nd5 {[%emt 0:03:28]} Ne5 {[%emt 0:00:38]} 23. Ne7+ {[%emt 0:01:21]} Kh8 {[%emt 0:00:08]} 24. Qxd6 {[%emt 0:01:35]} Be6 {[%emt 0:01:37]} 25. Nd4 {[%emt 0:04:20]} Nc4 {[%emt 0:01:21]} 0-1

[Event "FIDE CB Open 2022"]
[Site "Ceske Budejovice"]
[Date "2022.07.07"]
[Round "7.48"]
[White "Krejci, Vera Marie"]
[Black "Pavlicek, Petr"]
[Result "0-1"]
[ECO "C50"]
[WhiteElo "1554"]
[BlackElo "1806"]
[Annotator "NA RC COMBH"]
[PlyCount "136"]
[EventDate "2022.07.01"]
[EventType "swiss"]
[EventCountry "CZE"]
[SourceTitle "playchess.com"]
[Source "ChessBase"]
[SourceQuality "1"]
[TimeControl "40/5400+30:1800+30"]

1. e4 {[%emt 0:00:04]} e5 {[%emt 0:00:11]} 2. Nf3 {[%emt 0:00:05]} Nc6 {[%emt 0:00:09]} 3. Bc4 {[%emt 0:00:12]} Bc5 {[%emt 0:00:13]} 4. d3 {[%emt 0:00:21]} Nf6 {[%emt 0:00:30]} 5. h3 {[%emt 0:00:21]} h6 {[%emt 0:00:36]} 6. Nc3 {[%emt 0:00:19]} a6 {[%emt 0:01:14]} 7. a4 {[%emt 0:01:49]} d6 {[%emt 0:00:41]} 8. O-O {[%emt 0:04:16]} O-O {[%emt 0:00:28]} 9. Be3 {[%emt 0:01:01]} Nd4 {[%emt 0:02:14]} 10. Re1 {[%emt 0:07:49]} c6 {[%emt 0:03:33]} 11. Bxd4 {[%emt 0:04:23]} exd4 {[%emt 0:02:44]} 12. Ne2 {[%emt 0:01:23]} Bb4 {[%emt 0:00:24]} 13. c3 {[%emt 0:01:08]} dxc3 {[%emt 0:00:12]} 14. bxc3 {[%emt 0:00:16]} Ba5 {[%emt 0:00:12]} 15. Qc2 {[%emt 0:03:05]} d5 {[%emt 0:04:51]} 16. exd5 {[%emt 0:01:39]} Nxd5 {[%emt 0:00:14]} 17. d4 {[%emt 0:12:32]} Be6 {[%emt 0:05:59]} 18. Bd3 {[%emt 0:06:08]} Qf6 {[%emt 0:03:17]} 19. Red1 {[%emt 0:06:08]} Bxh3 {[%emt 0:04:12]} 20. Be4 {[%emt 0:17:11]} Bg4 {[%emt 0:04:51]} 21. c4 {[%emt 0:01:46]} Nf4 {[%emt 0:05:40]} 22. Ng3 {[%emt 0:08:17]} Rad8 {[%emt 0:02:07]} 23. d5 {[%emt 0:02:09]} cxd5 {[%emt 0:01:59]} 24. cxd5 {[%emt 0:00:45]} Nxd5 {[%emt 0:00:45]} 25. Bxd5 {[%emt 0:02:59]} Rxd5 {[%emt 0:00:19]} 26. Qe4 {[%emt 0:01:41]} Rxd1+ {[%emt 0:00:43]} 27. Rxd1 {[%emt 0:00:08]} Bxf3 {[%emt 0:01:38]} 28. gxf3 {[%emt 0:00:08]} Qc6 {[%emt 0:03:14]} 29. Qg4 {[%emt 0:01:31]} Rd8 {[%emt 0:03:42]} 30. Rb1 {[%emt 0:04:00]} b6 {[%emt 0:04:08]} 31. Nf5 {[%emt 0:01:23]} Qf6 {[%emt 0:00:12]} 32. Qe4 {[%emt 0:03:06]} Qg6+ {[%emt 0:04:21]} 33. Kf1 {[%emt 0:01:08]} Kh7 {[%emt 0:00:13]} 34. Ne3 {[%emt 0:02:43]} Qxe4 {[%emt 0:00:27]} 35. fxe4 {[%emt 0:00:02]} Rd4 {[%emt 0:00:20]} 36. Ra1 {[%emt 0:01:22]} Rxe4 {[%emt 0:00:18]} 37. Nd5 {[%emt 0:00:10]} Rd4 {[%emt 0:00:59]} 38. Nc7 {[%emt 0:00:35]} Rd7 {[%emt 0:00:11]} 39. Nxa6 {[%emt 0:00:14]} Ra7 {[%emt 0:00:14]} 40. Nb8 {[%emt 0:00:06]} Rc7 {[%emt 0:00:45]} 41. Rb1 {[%emt 0:30:50]} Rc4 {[%emt 0:30:39]} 42. Nd7 {[%emt 0:00:13]} Rxa4 {[%emt 0:00:37]} 43. Nxb6 {[%emt 0:00:07]} Rb4 {[%emt 0:00:30]} 44. Rxb4 {[%emt 0:00:09]} Bxb4 {[%emt 0:00:14]} 45. Kg2 {[%emt 0:00:24]} f5 {[%emt 0:01:02]} 46. f3 {[%emt 0:00:17]} g6 {[%emt 0:00:56]} 47. Kg3 {[%emt 0:00:22]} Kg7 {[%emt 0:00:06]} 48. Kh3 {[%emt 0:00:49]} g5 {[%emt 0:00:23]} 49. Nd5 {[%emt 0:00:50]} Bd6 {[%emt 0:00:56]} 50. Ne3 {[%emt 0:01:16]} Kg6 {[%emt 0:00:15]} 51. Nd5 {[%emt 0:00:38]} h5 {[%emt 0:00:33]} 52. Kg2 {[%emt 0:00:15]} f4 {[%emt 0:00:21]} 53. Nc3 {[%emt 0:02:05]} Kf5 {[%emt 0:00:30]} 54. Ne4 {[%emt 0:00:56]} Be5 {[%emt 0:01:35]} 55. Nd2 {[%emt 0:00:00]} g4 {[%emt 0:00:00]} 56. Nf1 {[%emt 0:00:00]} Bc3 {[%emt 0:00:00]} 57. Nh2 {[%emt 0:00:00]} Be1 {[%emt 0:00:00]} 58. fxg4+ {[%emt 0:00:36]} hxg4 {[%emt 0:00:00]} 59. Nf3 {[%emt 0:00:31]} gxf3+ {[%emt 0:00:00]} 60. Kxf3 {[%emt 0:00:30]} Bh4 {[%emt 0:00:00]} 61. Kg2 {[%emt 0:00:31]} Ke4 {[%emt 0:00:00]} 62. Kg1 {[%emt 0:00:35]} Ke3 {[%emt 0:00:00]} 63. Kf1 {[%emt 0:00:22]} f3 {[%emt 0:00:00]} 64. Kg1 {[%emt 0:00:05]} Ke2 {[%emt 0:00:00]} 65. Kh1 {[%emt 0:00:12]} f2 {[%emt 0:00:00]} 66. Kh2 {[%emt 0:00:02]} Bd8 {[%emt 0:00:00]} 67. Kg2 {[%emt 0:00:19]} f1=Q+ {[%emt 0:00:00]} 68. Kh2 {[%emt 0:00:02]} Bc7# {[%emt 0:00:00]} 0-1

[Event "FIDE CB Open 2022"]
[Site "Ceske Budejovice"]
[Date "2022.07.07"]
[Round "7.49"]
[White "Svoboda, Petr"]
[Black "Simajchl, Adam"]
[Result "1-0"]
[ECO "B27"]
[WhiteElo "2088"]
[BlackElo "1610"]
[Annotator "NA"]
[PlyCount "79"]
[EventDate "2022.07.01"]
[EventType "swiss"]
[EventCountry "CZE"]
[SourceTitle "playchess.com"]
[Source "ChessBase"]
[SourceQuality "1"]
[TimeControl "40/5400+30:1800+30"]

1. e4 {[%emt 0:00:04]} c5 {[%emt 0:00:01]} 2. Nf3 {[%emt 0:00:07]} g6 {[%emt 0:00:04]} 3. d4 {[%emt 0:00:09]} cxd4 {[%emt 0:00:02]} 4. Qxd4 {[%emt 0:00:07]} Nf6 {[%emt 0:00:03]} 5. Nc3 {[%emt 0:00:10]} Nc6 {[%emt 0:00:02]} 6. Qa4 {[%emt 0:00:07]} Bg7 {[%emt 0:08:22]} 7. e5 {[%emt 0:00:11]} Ng8 {[%emt 0:00:16]} 8. Bf4 {[%emt 0:00:13]} e6 {[%emt 0:00:20]} 9. Nb5 {[%emt 0:04:55]} h6 {[%emt 0:10:10]} 10. Nd6+ {[%emt 0:01:29]} Kf8 {[%emt 0:00:02]} 11. O-O-O {[%emt 0:01:26]} Nge7 {[%emt 0:00:23]} 12. g4 {[%emt 0:07:17]} a6 {[%emt 0:05:48]} 13. h4 {[%emt 0:02:40]} Nd5 {[%emt 0:01:00]} 14. Qe4 {[%emt 0:09:41]} Ncb4 {[%emt 0:15:28]} 15. Bc4 {[%emt 0:08:07]} b5 {[%emt 0:05:57]} 16. Bxd5 {[%emt 0:02:23]} Nxd5 {[%emt 0:03:08]} 17. Rxd5 {[%emt 0:01:02]} Rb8 {[%emt 0:00:58]} 18. Rd3 {[%emt 0:02:08]} b4 {[%emt 0:01:21]} 19. Rhd1 {[%emt 0:02:37]} Qa5 {[%emt 0:02:18]} 20. Kb1 {[%emt 0:02:55]} Kg8 {[%emt 0:00:27]} 21. Nxc8 {[%emt 0:06:03]} Rxc8 {[%emt 0:00:34]} 22. Rxd7 {[%emt 0:01:40]} Bf8 {[%emt 0:00:39]} 23. Qb7 {[%emt 0:03:54]} Qc5 {[%emt 0:00:03]} 24. R1d2 {[%emt 0:05:24]} Qc4 {[%emt 0:01:24]} 25. R7d3 {[%emt 0:03:59]} Rc5 {[%emt 0:04:41]} 26. Be3 {[%emt 0:03:33]} Rc7 {[%emt 0:01:47]} 27. Qb6 {[%emt 0:01:30]} Rc6 {[%emt 0:03:51]} 28. b3 {[%emt 0:02:04]} Qe4 {[%emt 0:02:00]} 29. Qb8 {[%emt 0:09:39]} Kg7 {[%emt 0:03:35]} 30. Nd4 {[%emt 0:04:33]} Bc5 {[%emt 0:01:34]} 31. Bxh6+ {[%emt 0:03:06]} Kh7 {[%emt 0:01:24]} 32. Qxh8+ {[%emt 0:04:30]} Kxh8 {[%emt 0:03:33]} 33. Nxc6 {[%emt 0:00:08]} Qxc6 {[%emt 0:01:53]} 34. Rd8+ {[%emt 0:00:32]} Kh7 {[%emt 0:00:28]} 35. Bg5 {[%emt 0:00:45]} Bb6 {[%emt 0:02:19]} 36. Bf6 {[%emt 0:02:59]} Bxd8 {[%emt 0:04:54]} 37. Rxd8 {[%emt 0:00:08]} Qg2 {[%emt 0:00:22]} 38. Kb2 {[%emt 0:00:22]} g5 {[%emt 0:00:36]} 39. Rh8+ {[%emt 0:00:00]} Kg6 {[%emt 0:18:13]} 40. Kb1 {[%emt 0:07:53]} 1-0

[Event "FIDE CB Open 2022"]
[Site "Ceske Budejovice"]
[Date "2022.07.07"]
[Round "7.50"]
[White "Kukacka, Ladislav"]
[Black "Hrbek, Jachym"]
[Result "0-1"]
[ECO "B11"]
[WhiteElo "1555"]
[BlackElo "1695"]
[Annotator "NA RC COMBH"]
[PlyCount "68"]
[EventDate "2022.07.01"]
[EventType "swiss"]
[EventCountry "CZE"]
[SourceTitle "playchess.com"]
[Source "ChessBase"]
[SourceQuality "1"]
[TimeControl "40/5400+30:1800+30"]

1. e4 {[%emt 0:00:10]} c6 {[%emt 0:00:53]} 2. Nc3 {[%emt 0:01:06]} d5 {[%emt 0:00:15]} 3. Nf3 {[%emt 0:01:09]} dxe4 {[%emt 0:00:12]} 4. Nxe4 {[%emt 0:00:21]} Nf6 {[%emt 0:02:37]} 5. Nxf6+ {[%emt 0:02:48]} exf6 {[%emt 0:00:14]} 6. Bc4 {[%emt 0:01:03]} Bd6 {[%emt 0:02:18]} 7. O-O {[%emt 0:02:09]} O-O {[%emt 0:00:26]} 8. c3 {[%emt 0:01:56]} Qc7 {[%emt 0:05:22]} 9. h3 {[%emt 0:02:28]} Nd7 {[%emt 0:04:39]} 10. d4 {[%emt 0:02:07]} b5 {[%emt 0:07:40]} 11. Bb3 {[%emt 0:00:42]} Bb7 {[%emt 0:06:34]} 12. Bc2 {[%emt 0:02:56]} Rfd8 {[%emt 0:03:35]} 13. Qd3 {[%emt 0:03:25]} Nf8 {[%emt 0:00:35]} 14. Be3 {[%emt 0:08:32]} a5 {[%emt 0:08:33]} 15. Qf5 {[%emt 0:05:45]} Bc8 {[%emt 0:05:56]} 16. Qh5 {[%emt 0:01:28]} Be6 {[%emt 0:01:43]} 17. Kh1 {[%emt 0:09:02]} Bd5 {[%emt 0:09:06]} 18. Bb3 {[%emt 0:04:56]} Be4 {[%emt 0:05:55]} 19. Nh4 {[%emt 0:05:47]} a4 {[%emt 0:05:23]} 20. Bd1 {[%emt 0:03:51]} g5 {[%emt 0:01:28]} 21. Qg4 {[%emt 0:01:33]} Bd3 {[%emt 0:02:05]} 22. Rg1 {[%emt 0:00:44]} h5 {[%emt 0:03:54]} 23. Qf3 {[%emt 0:12:26]} gxh4 {[%emt 0:02:57]} 24. Bh6 {[%emt 0:00:50]} Bg6 {[%emt 0:02:05]} 25. Qxf6 {[%emt 0:01:07]} Ne6 {[%emt 0:00:44]} 26. Qf3 {[%emt 0:13:16]} Kh7 {[%emt 0:05:32]} 27. Be3 {[%emt 0:02:01]} Be7 {[%emt 0:07:11]} 28. Bc2 {[%emt 0:01:26]} Bxc2 {[%emt 0:03:48]} 29. Qxf7+ {[%emt 0:01:27]} Ng7 {[%emt 0:00:19]} 30. Bf4 {[%emt 0:01:48]} Qd7 {[%emt 0:01:51]} 31. Rae1 {[%emt 0:02:27]} Rf8 {[%emt 0:01:06]} 32. Qxe7 {[%emt 0:02:24]} Qxe7 {[%emt 0:00:06]} 33. Rxe7 {[%emt 0:00:17]} Rxf4 {[%emt 0:00:07]} 34. g3 {[%emt 0:00:47]} Be4+ {[%emt 0:00:52]} 0-1

[Event "FIDE CB Open 2022"]
[Site "Ceske Budejovice"]
[Date "2022.07.07"]
[Round "7.52"]
[White "Hladky, Mikulas"]
[Black "Hammel, Juergen"]
[Result "1/2-1/2"]
[ECO "C41"]
[WhiteElo "1549"]
[BlackElo "1650"]
[Annotator "NA RC COMBH"]
[PlyCount "143"]
[EventDate "2022.07.01"]
[EventType "swiss"]
[EventCountry "CZE"]
[SourceTitle "playchess.com"]
[Source "ChessBase"]
[SourceQuality "1"]
[TimeControl "40/5400+30:1800+30"]

1. e4 {[%emt 0:00:04]} e5 {[%emt 0:00:07]} 2. Nf3 {[%emt 0:00:08]} d6 {[%emt 0:00:24]} 3. Nc3 {[%emt 0:00:48]} Nf6 {[%emt 0:00:31]} 4. d4 {[%emt 0:00:55]} exd4 {[%emt 0:00:53]} 5. Nxd4 {[%emt 0:00:14]} Be7 {[%emt 0:02:11]} 6. Be3 {[%emt 0:02:41]} O-O {[%emt 0:01:28]} 7. Be2 {[%emt 0:01:50]} Re8 {[%emt 0:05:04]} 8. O-O {[%emt 0:00:23]} Bf8 {[%emt 0:02:01]} 9. Bd3 {[%emt 0:04:11]} Nbd7 {[%emt 0:00:46]} 10. Nf3 {[%emt 0:01:42]} Ne5 {[%emt 0:04:40]} 11. Nxe5 {[%emt 0:00:32]} Rxe5 {[%emt 0:01:52]} 12. f4 {[%emt 0:00:13]} Re8 {[%emt 0:00:35]} 13. Bd4 {[%emt 0:02:52]} b6 {[%emt 0:13:32]} 14. Bxf6 {[%emt 0:01:38]} Qxf6 {[%emt 0:00:19]} 15. Nd5 {[%emt 0:00:56]} Qd8 {[%emt 0:01:39]} 16. f5 {[%emt 0:03:02]} c6 {[%emt 0:01:33]} 17. Nc3 {[%emt 0:01:23]} Qf6 {[%emt 0:04:48]} 18. Qf3 {[%emt 0:03:52]} Bb7 {[%emt 0:03:26]} 19. Rae1 {[%emt 0:09:42]} d5 {[%emt 0:01:18]} 20. Kh1 {[%emt 0:03:45]} Bb4 {[%emt 0:05:22]} 21. a3 {[%emt 0:05:50]} Bxc3 {[%emt 0:01:15]} 22. bxc3 {[%emt 0:00:08]} Re5 {[%emt 0:01:23]} 23. Qg4 {[%emt 0:03:16]} Rae8 {[%emt 0:01:56]} 24. c4 {[%emt 0:08:14]} dxe4 {[%emt 0:00:42]} 25. Rxe4 {[%emt 0:00:54]} c5 {[%emt 0:01:43]} 26. Rxe5 {[%emt 0:01:06]} Rxe5 {[%emt 0:00:32]} 27. Qg3 {[%emt 0:02:44]} h6 {[%emt 0:03:14]} 28. h3 {[%emt 0:00:19]} Be4 {[%emt 0:08:34]} 29. Bxe4 {[%emt 0:09:18]} Rxe4 {[%emt 0:00:29]} 30. Qd3 {[%emt 0:00:25]} Qd4 {[%emt 0:03:06]} 31. Qf3 {[%emt 0:02:18]} Qxc4 {[%emt 0:04:05]} 32. f6 {[%emt 0:01:34]} Re6 {[%emt 0:03:45]} 33. fxg7 {[%emt 0:00:41]} Rg6 {[%emt 0:00:17]} 34. Qf5 {[%emt 0:02:59]} Qe6 {[%emt 0:02:39]} 35. Qf3 {[%emt 0:01:19]} Kxg7 {[%emt 0:00:53]} 36. Qc3+ {[%emt 0:00:15]} Rf6 {[%emt 0:01:11]} 37. Qg3+ {[%emt 0:00:30]} Rg6 {[%emt 0:01:19]} 38. Qc3+ {[%emt 0:00:17]} f6 {[%emt 0:01:56]} 39. Re1 {[%emt 0:01:14]} Qc6 {[%emt 0:01:34]} 40. Rg1 {[%emt 0:01:20]} a6 {[%emt 0:03:53]} 41. Qe3 {[%emt 0:31:12]} Qb7 {[%emt 0:30:37]} 42. Qd3 {[%emt 0:00:24]} b5 {[%emt 0:01:11]} 43. Qe3 {[%emt 0:00:49]} Qc7 {[%emt 0:00:44]} 44. Re1 {[%emt 0:00:47]} Qb7 {[%emt 0:03:01]} 45. Qe7+ {[%emt 0:02:11]} Qxe7 {[%emt 0:00:16]} 46. Rxe7+ {[%emt 0:00:03]} Kf8 {[%emt 0:00:35]} 47. Re6 {[%emt 0:00:07]} Kf7 {[%emt 0:00:53]} 48. Rxa6 {[%emt 0:00:08]} f5 {[%emt 0:00:20]} 49. Ra5 {[%emt 0:01:36]} Rb6 {[%emt 0:00:28]} 50. Kh2 {[%emt 0:00:31]} Ke6 {[%emt 0:00:36]} 51. Ra8 {[%emt 0:06:58]} Kd5 {[%emt 0:02:28]} 52. Kg3 {[%emt 0:02:14]} Kc4 {[%emt 0:00:19]} 53. Rd8 {[%emt 0:00:44]} Kc3 {[%emt 0:00:17]} 54. Rd3+ {[%emt 0:00:22]} Kxc2 {[%emt 0:00:10]} 55. Rf3 {[%emt 0:00:43]} Rf6 {[%emt 0:00:45]} 56. Rf2+ {[%emt 0:00:27]} Kb3 {[%emt 0:00:13]} 57. Rf3+ {[%emt 0:00:07]} Ka4 {[%emt 0:01:56]} 58. Rc3 {[%emt 0:01:03]} Rc6 {[%emt 0:02:00]} 59. Kf4 {[%emt 0:01:11]} b4 {[%emt 0:00:55]} 60. axb4 {[%emt 0:00:15]} Kxb4 {[%emt 0:00:38]} 61. Rc1 {[%emt 0:00:29]} Rd6 {[%emt 0:02:23]} 62. Kxf5 {[%emt 0:00:22]} c4 {[%emt 0:00:25]} 63. g4 {[%emt 0:00:16]} c3 {[%emt 0:00:48]} 64. h4 {[%emt 0:00:06]} Kb3 {[%emt 0:00:27]} 65. g5 {[%emt 0:00:26]} hxg5 {[%emt 0:00:35]} 66. hxg5 {[%emt 0:00:32]} c2 {[%emt 0:00:39]} 67. g6 {[%emt 0:00:19]} Rd1 {[%emt 0:00:04]} 68. Rxc2 {[%emt 0:00:20]} Kxc2 {[%emt 0:00:13]} 69. g7 {[%emt 0:00:04]} Rf1+ {[%emt 0:01:18]} 70. Kg6 {[%emt 0:00:30]} Rg1+ {[%emt 0:00:30]} 71. Kf7 {[%emt 0:00:30]} Rf1+ {[%emt 0:00:30]} 72. Kg6 {[%emt 0:00:05]} 1/2-1/2

[Event "FIDE CB Open 2022"]
[Site "Ceske Budejovice"]
[Date "2022.07.07"]
[Round "7.53"]
[White "Jodas, Daniel"]
[Black "Rybackova, Lucie"]
[Result "0-1"]
[ECO "B11"]
[WhiteElo "1614"]
[BlackElo "1696"]
[Annotator "NA RC COMBH"]
[PlyCount "94"]
[EventDate "2022.07.01"]
[EventType "swiss"]
[EventCountry "CZE"]
[SourceTitle "playchess.com"]
[Source "ChessBase"]
[SourceQuality "1"]
[TimeControl "40/5400+30:1800+30"]

1. e4 {[%emt 0:00:10]} c6 {[%emt 0:00:30]} 2. Nc3 {[%emt 0:00:31]} d5 {[%emt 0:00:37]} 3. Nf3 {[%emt 0:00:14]} dxe4 {[%emt 0:03:48]} 4. Nxe4 {[%emt 0:00:08]} Bf5 {[%emt 0:03:03]} 5. Ng3 {[%emt 0:00:29]} Bg6 {[%emt 0:00:26]} 6. h4 {[%emt 0:00:17]} h6 {[%emt 0:00:48]} 7. Ne5 {[%emt 0:00:25]} Qd6 {[%emt 0:13:50]} 8. d4 {[%emt 0:10:38]} Nd7 {[%emt 0:02:50]} 9. Nxg6 {[%emt 0:01:50]} Qxg6 {[%emt 0:00:24]} 10. Be2 {[%emt 0:08:04]} Qd6 {[%emt 0:13:16]} 11. O-O {[%emt 0:04:07]} Ngf6 {[%emt 0:03:21]} 12. Nf5 {[%emt 0:10:08]} Qc7 {[%emt 0:05:42]} 13. g3 {[%emt 0:02:02]} Nb6 {[%emt 0:07:25]} 14. c4 {[%emt 0:12:45]} e6 {[%emt 0:03:55]} 15. Bf4 {[%emt 0:08:54]} Qd7 {[%emt 0:03:59]} 16. Ne3 {[%emt 0:02:43]} Be7 {[%emt 0:03:36]} 17. Qd3 {[%emt 0:03:33]} O-O {[%emt 0:01:39]} 18. Be5 {[%emt 0:03:46]} c5 {[%emt 0:07:35]} 19. Bf3 {[%emt 0:14:47]} Rad8 {[%emt 0:06:49]} 20. Rfd1 {[%emt 0:00:34]} Qc8 {[%emt 0:01:09]} 21. d5 {[%emt 0:04:36]} exd5 {[%emt 0:02:25]} 22. cxd5 {[%emt 0:00:02]} Bd6 {[%emt 0:05:04]} 23. Bxd6 {[%emt 0:03:37]} Rxd6 {[%emt 0:00:17]} 24. Nf5 {[%emt 0:00:16]} Rd7 {[%emt 0:02:03]} 25. d6 {[%emt 0:00:21]} Qd8 {[%emt 0:01:39]} 26. Qb5 {[%emt 0:01:38]} c4 {[%emt 0:01:15]} 27. Bg2 {[%emt 0:04:07]} g6 {[%emt 0:01:44]} 28. Ne7+ {[%emt 0:00:23]} Kg7 {[%emt 0:00:09]} 29. Qe5 {[%emt 0:02:23]} Re8 {[%emt 0:00:58]} 30. Qd4 {[%emt 0:00:05]} Qb8 {[%emt 0:01:54]} 31. Qe5 {[%emt 0:01:06]} Rdxe7 {[%emt 0:00:29]} 32. Qxe7 {[%emt 0:01:19]} Rxe7 {[%emt 0:00:14]} 33. dxe7 {[%emt 0:00:04]} Qe8 {[%emt 0:00:16]} 34. Re1 {[%emt 0:00:35]} Nbd5 {[%emt 0:00:15]} 35. Bxd5 {[%emt 0:00:44]} Nxd5 {[%emt 0:00:08]} 36. Re2 {[%emt 0:00:13]} Nxe7 {[%emt 0:01:01]} 37. Rae1 {[%emt 0:00:09]} Kf8 {[%emt 0:00:04]} 38. Kh2 {[%emt 0:00:24]} Qd7 {[%emt 0:00:14]} 39. Rxe7 {[%emt 0:00:30]} Qxe7 {[%emt 0:00:05]} 40. Rxe7 {[%emt 0:00:06]} Kxe7 {[%emt 0:00:06]} 41. g4 {[%emt 0:30:41]} Ke6 {[%emt 0:30:15]} 42. Kg3 {[%emt 0:00:33]} Ke5 {[%emt 0:01:28]} 43. Kf3 {[%emt 0:00:19]} g5 {[%emt 0:00:30]} 44. h5 {[%emt 0:00:00]} Kd4 {[%emt 0:00:00]} 45. Ke2 {[%emt 0:00:00]} b5 {[%emt 0:00:00]} 46. f4 {[%emt 0:00:00]} f6 {[%emt 0:00:00]} 47. fxg5 {[%emt 0:00:00]} fxg5 {[%emt 0:00:00]} 0-1